{"text_format":"1","workbook":"xlsx","n_sheets":2,"sheets":["Лист6","Лист1"],"not_rendered":{"charts":0,"images":0,"macros":1,"external_links":0,"defined_names":0,"comments":0,"pivot_tables":0},"unopened":[],"bounds":{"document_bytes":16777216,"sheet_cells":100000,"rows_first":2000,"rows_last":500,"rows_between":2000,"halvings":0,"cell_chars":16384,"cell_head_chars":4096},"cells_cut":0,"cells_raw":0,"read":"whole","date_system":"1900"}

{"sheet":"Лист6","index":0,"n_rows":21,"n_cols":14,"rows_kept":21,"cut":false,"hidden":false,"merged":[]}
["NAME","NAME","NAME","NAME","NAME","NAME","NAME","NAME","NAME","NAME","NAME","NAME","NAME","NAME"]
["+ 4,69 pуб.\t","+ 6,99 pуб.\t","- 1,36 pуб.\t","+ 6,27 pуб.\t","+ 1,56 pуб.\t","+ 16,45 pуб.\t","- 8,85 pуб.\t","+ 11,50 pуб.\t","+ 15,32 pуб.\t","- 2,45 pуб.\t","+ 16,25 pуб.\t","+ 1,54 pуб.\t","- 2,63 pуб.\t","- 2,33 pуб.\t"]
["Gwimyeon ","Dragonterror Cape ","Netherax, Nightmare of the Mist ","Dragonterror Cape ","Obsidian Blade Warhelm ","Cowl of the Errant Soldier ","Helm of Impasse ","Andalmere the Litigon ","Cowl of the Errant Soldier ","Shard of Retribution ","Cowl of the Errant Soldier ","Bite of the Slithereen Knight - Off-Hand ","Shard of Retribution ","Shard of Retribution "]
["+ 5,44 pуб.\t","+ 5,35 pуб.\t","- 1,43 pуб.\t","+ 38,38 pуб.\t","+ 11,50 pуб.\t","+ 8,91 pуб.\t","+ 9,20 pуб.\t","+ 6,99 pуб.\t","+ 6,56 pуб.\t","+ 1,19 pуб.\t","+ 1,54 pуб.\t","+ 4,03 pуб.\t","+ 4,30 pуб.\t","+ 4,30 pуб.\t"]
["Gwimyeon ","Gwimyeon ","Netherax, Nightmare of the Mist ","Wandering Harlequin's Crest ","Andalmere the Litigon ","Andalmere the Litigon ","Andalmere the Litigon ","Dragonterror Cape ","Dragonterror Cape ","Netherax, Nightmare of the Mist ","Bite of the Slithereen Knight - Off-Hand ","Horned Visage of the Ravenous Fiend ","Horned Visage of the Ravenous Fiend ","Horned Visage of the Ravenous Fiend "]
["- 25,22 pуб.\t","- 9,54 pуб.\t","+ 6,61 pуб.\t","+ 11 pуб.\t","+ 14,10 pуб.\t","+ 6,90 pуб.\t","- 2,62 pуб.\t","+ 7,74 pуб.\t","+ 2,35 pуб.\t","+ 1,51 pуб.\t","+ 3,92 pуб.\t","+ 6,70 pуб.\t","+ 16,12 pуб.\t","+ 16,10 pуб.\t"]
["Mantle of the Cinder Baron ","Ragestone Axe ","Dragonterror Cape ","Andalmere the Litigon ","Cowl of the Errant Soldier ","Dragonterror Cape ","Shard of Retribution ","Dragonterror Helmet ","Cowl of the Blood Stained Sands ","Bite of the Slithereen Knight - Off-Hand ","Horned Visage of the Ravenous Fiend ","Dragonterror Helmet ","Cowl of the Errant Soldier ","Cowl of the Errant Soldier "]
["+ 5,75 pуб.\t","+ 2,99 pуб.\t","+ 10,71 pуб.\t","- 6,97 pуб.\t","+ 5,47 pуб.\t","+ 4,45 pуб.\t","+ 5,75 pуб.\t","+ 1,54 pуб.\t","+ 1,54 pуб.\t","+ 1,21 pуб.\t","+ 5,37 pуб.\t","+ 5,75 pуб.\t","+ 2 pуб.\t","- 100 pуб.\t"]
["Helmet of the Convicts ","Dragonterror Cape ","Trident of the Deep One ","Arms of the Scouring Dunes ","Dragonterror Helmet ","Gwimyeon ","Ragestone Axe ","Bite of the Slithereen Knight - Off-Hand ","Bite of the Slithereen Knight - Off-Hand ","Netherax, Nightmare of the Mist ","Helmet of the Convicts ","Gwimyeon ","Obsidian Blade Warhelm ","Almond the Frondillo "]
["- 2,61 pуб.\t","+ 2,99 pуб.\t","+ 10 pуб.\t","+ 8 pуб.\t","+ 16,10 pуб.\t","- 2,61 pуб.\t","+ 17,44 pуб.\t","+ 1,54 pуб.\t","+ 1,54 pуб.\t","+ 29 pуб.\t","+ 7,26 pуб.\t","+ 0,82 pуб.\t","+ 6 pуб.\t","- 100,02 pуб.\t"]
["Shard of Retribution ","Cercus of Whirling Death ","Andalmere the Litigon ","Dragonterror Helmet ","Cowl of the Errant Soldier ","Shard of Retribution ","Guirus ","Bite of the Slithereen Knight - Off-Hand ","Bite of the Slithereen Knight - Off-Hand ","Heavy Butterfly Blades ","Dragonterror Helmet ","Obsidian Blade Warhelm ","Helmet of the Convicts ","Almond the Frondillo "]
["+ 5 pуб.\t","- 1,48 pуб.\t","+ 18,01 pуб.\t","- 2,30 pуб.\t","+ 5,34 pуб.\t","+ 6,99 pуб.\t","+ 16,05 pуб.\t","+ 1,54 pуб.\t","+ 1,54 pуб.\t","+ 4,14 pуб.\t","+ 14,06 pуб.\t","+ 37,98 pуб.\t","+ 6,64 pуб.\t","- 100 pуб.\t"]
["Gwimyeon ","Netherax, Nightmare of the Mist ","Skywrath Sentinel ","Shard of Retribution ","Gwimyeon ","Dragonterror Helmet ","Cowl of the Errant Soldier ","Bite of the Slithereen Knight - Off-Hand ","Bite of the Slithereen Knight - Off-Hand ","Horned Visage of the Ravenous Fiend ","Cowl of the Errant Soldier ","Wandering Harlequin's Crest ","Dragonterror Cape ","Almond the Frondillo "]
["+ 6,27 pуб.\t","- 2,72 pуб.\t","- 2,43 pуб.\t","- 8,71 pуб.\t","+ 4,03 pуб.\t","+ 3,45 pуб.\t","+ 4,02 pуб.\t","+ 1,54 pуб.\t","- 2,41 pуб.\t","+ 1,15 pуб.\t","+ 15 pуб.\t","- 100,01 pуб.\t","+ 6,90 pуб.\t","+ 16,69 pуб.\t"]
["Dragonterror Cape ","Shard of Retribution ","Shard of Retribution ","Helm of Impasse ","Gwimyeon ","Horned Visage of the Ravenous Fiend ","Horned Visage of the Ravenous Fiend ","Bite of the Slithereen Knight - Off-Hand ","Shard of Retribution ","Obsidian Blade Warhelm ","Cowl of the Errant Soldier ","Almond the Frondillo ","Dragonterror Cape ","Cowl of the Errant Soldier "]
["+ 6,99 pуб.\t","+ 2,35 pуб.\t","+ 11,88 pуб.\t","+ 6,27 pуб.\t","- 2,60 pуб.\t","+ 6,99 pуб.\t","+ 1,15 pуб.\t","+ 6,18 pуб.\t","- 100 pуб.\t","+ 3,68 pуб.\t","+ 61 pуб.\t","- 2,60 pуб.\t","- 2,79 pуб.\t","- 2,44 pуб.\t"]
["Dragonterror Cape ","Stinger of the Ancient Sovereign ","Cowl of the Errant Soldier ","Dragonterror Helmet ","Shard of Retribution ","Dragonterror Cape ","Mantle of Mysteries ","Helmet of the Convicts ","Almond the Frondillo ","Cercus of Whirling Death ","Surgical Precision Buzzsaw ","Shard of Retribution ","Shard of Retribution ","The Dead Winter Soul "]
["+ 5,75 pуб.\t","+ 15,67 pуб.\t","- 6,97 pуб.\t","+ 14,11 pуб.\t","- 2,46 pуб.\t","+ 6,25 pуб.\t","- 2,33 pуб.\t","- 100,07 pуб.\t","+ 9 pуб.\t","- 1,37 pуб.\t","+ 37,73 pуб.\t","+ 4 pуб.\t","+ 2,33 pуб.\t","- 2,50 pуб.\t"]
["Helmet of the Convicts ","Cowl of the Errant Soldier ","Arms of the Scouring Dunes ","Cowl of the Errant Soldier ","Shard of Retribution ","Dragonterror Cape ","Shard of Retribution ","Almond the Frondillo ","Andalmere the Litigon ","Netherax, Nightmare of the Mist ","Wandering Harlequin's Crest ","Horned Visage of the Ravenous Fiend ","Hlotl-Feather Necklace ","The Dead Winter Soul "]
["+ 7,84 pуб.\t","+ 7,32 pуб.\t","- 2,45 pуб.\t","+ 16,10 pуб.\t","+ 4,69 pуб.\t","+ 35 pуб.\t","+ 16,21 pуб.\t","+ 2,32 pуб.\t","+ 6,90 pуб.\t","+ 2,30 pуб.\t","- 2,50 pуб.\t","+ 2,15 pуб.\t","+ 2,33 pуб.\t","+ 2,07 pуб.\t"]
["Dragonterror Helmet ","Dragonterror Helmet ","Shard of Retribution ","Cowl of the Errant Soldier ","Gwimyeon ","Wandering Harlequin's Crest ","Cowl of the Errant Soldier ","Shard of Retribution ","Dragonterror Helmet ","Hlotl-Feather Necklace ","The Dead Winter Soul ","Shard of Retribution ","Shard of Retribution ","Pretiosa of Putrescense "]

{"sheet":"Лист1","index":1,"n_rows":27,"n_cols":6,"rows_kept":27,"cut":false,"hidden":false,"merged":[]}
[null,"Название",null,null,"Покупка","Продажа"]
["+ 4,69\t","Gwimyeon ",{"$f":"CLEAN(A2)","v":"+ 4,69"},{"$f":"-C2","v":-4.6900000000000004},{"$f":"IF(D2<0,D2,0)","v":-4.6900000000000004},{"$f":"IF(D2>0,D2,0)","v":0}]
["+ 6,99\t","Dragonterror Cape ",{"$f":"CLEAN(A3)","v":"+ 6,99"},{"$f":"-C3","v":-6.99},{"$f":"IF(D3<0,D3,0)","v":-6.99},{"$f":"IF(D3>0,D3,0)","v":0}]
["- 1,36\t","Netherax, Nightmare of the Mist ","- 1,36",1.36,0,1.36]
["+ 6,27\t","Dragonterror Cape ","+ 6,27",-6.27,-6.27,0]
["+ 1,56\t","Obsidian Blade Warhelm ","+ 1,56",-1.56,-1.56,0]
["+ 16,45\t","Cowl of the Errant Soldier ","+ 16,45",-16.45,-16.45,0]
["- 8,85\t","Helm of Impasse ","- 8,85",8.85,0,8.85]
["+ 11,50\t","Andalmere the Litigon ","+ 11,50",-11.5,-11.5,0]
["+ 15,32\t","Cowl of the Errant Soldier ","+ 15,32",-15.32,-15.32,0]
["- 2,45\t","Shard of Retribution ","- 2,45",2.4500000000000002,0,2.4500000000000002]
["+ 16,25\t","Cowl of the Errant Soldier ","+ 16,25",-16.25,-16.25,0]
["+ 1,54\t","Bite of the Slithereen Knight - Off-Hand ","+ 1,54",-1.54,-1.54,0]
["- 2,63\t","Shard of Retribution ","- 2,63",2.63,0,2.63]
["- 2,33\t","Shard of Retribution ","- 2,33",2.33,0,2.33]
["+ 7,38\t","Dragonterror Helmet ","+ 7,38",-7.38,-7.38,0]
["+ 15,52\t","Cowl of the Errant Soldier ","+ 15,52",-15.52,-15.52,0]
["- 2,61\t","Shard of Retribution ","- 2,61",2.61,0,2.61]
["- 100,10\t","Almond the Frondillo ","- 100,10",100.1,0,100.1]
["+ 1,15\t","Obsidian Blade Warhelm ","+ 1,15",-1.1499999999999999,-1.1499999999999999,0]
["+ 37,98\t","Wandering Harlequin's Crest ","+ 37,98",-37.979999999999997,-37.979999999999997,0]
["+ 1,54\t","Obsidian Blade Warhelm ","+ 1,54",-1.54,-1.54,0]
["+ 106,97\t","Blood Drainer ","+ 106,97",-106.97,-106.97,0]
["+ 59,86\t","Surgical Precision Buzzsaw ","+ 59,86",-59.86,-59.86,0]
["- 1,22\t","Restraints of the Frost Lord ","- 1,22",1.22,0,1.22]
["+ 16,10\t","Cowl of the Errant Soldier ","+ 16,10",-16.100000000000001,-16.100000000000001,0]
["- 1,22\t","Restraints of the Frost Lord ","- 1,22",1.22,0,1.22]